Cogmind - Beta 14 @@@ ROGUE MODE // 2024.11.19 @ 13:31:42 Player: Fangrelle Result: Destroyed by G1-CQ6(R) with Subdweller Laser Performance ------------- Evolutions (0) 0 Regions Visited (3) 600 Robots Destroyed (48) 240 Value Destroyed (1016) 1016 Prototype IDs (1) 20 Alien Tech Used (0) 0 Bonus (2) 2 TOTAL SCORE: 1878 Bonus ------- High Alert Combat Kills 2 Cogmind --------- Core Integrity 0/250 Matter 292/300 Energy 250/250 System Corruption 0% Temperature Cool (6) Movement Rolling (131) Ox3 Location -10/Subcaves Parts ------- > --- POWER (1) -------- Ion Engine > --- PROPULSION (2) --- Wheel Subdweller Monowheel > --- UTILITY (2) ------ Huge Storage Unit Experimental Sensor Array > --- WEAPON (2) ------- Particle Gun Heavy Battle Rifle > --- INVENTORY (25) --- Light Nuclear Core Subdweller Monowheel Improved Heat Sink Disposable Heat Sink Large Storage Unit Subdweller Optics Subdweller Optics Terrain Scan Processor Seismic Detector Targeting Computer Hacking Suite Hacking Suite Hacking Suite Particle Gun Subdweller Laser Light Assault Rifle Subdweller Machine Gun Datajack Scrap Shield Fragment (48) Scrap Shield Fragment (42) Peak State ------------ > --- POWER ------------ Ion Engine > --- PROPULSION ------- Wheel Subdweller Monowheel > --- UTILITY ---------- Huge Storage Unit Experimental Sensor Array > --- WEAPON ----------- Particle Gun Heavy Battle Rifle > --- INVENTORY -------- Light Nuclear Core Subdweller Monowheel Improved Heat Sink Disposable Heat Sink Large Storage Unit Subdweller Optics Subdweller Optics Terrain Scan Processor Seismic Detector Targeting Computer Hacking Suite Hacking Suite Hacking Suite Particle Gun Subdweller Laser Light Assault Rifle Subdweller Machine Gun Datajack Scrap Shield Fragment Scrap Shield Fragment [Rating: 24] Favorites ----------- Power Ion Engine Engine Ion Engine Propulsion Light Treads Treads Light Treads Leg Aluminum Leg Wheel Wheel Utility Large Storage Unit Device Improved Heat Sink Storage Large Storage Unit Protection Light Armor Plating Weapon Light Assault Rifle Energy Gun Particle Gun Ballistic Gun Light Assault Rifle Ballistic Cannon Light Cannon Launcher Grenade Launcher Build | -11 -10 -10 -10 ------- Run | Yrd Mat Min Sub Slots Evolved . | . . . . Power . | . . . . Propulsion . | . . . . Utility . | . . . . Weapon . | . . . . Parts Attached 38 | 3 14 15 6 Power 2 | . 1 1 . Engine 2 | . 1 1 . Core . | . . . . Reactor . | . . . . Propulsion 7 | 2 2 2 1 Treads 3 | 2 . 1 . Leg . | . . . . Wheel 4 | . 2 1 1 Hover . | . . . . Flight . | . . . . Utility 10 | 1 4 4 1 Device 4 | 1 . 2 1 Storage 2 | . 1 1 . Processor . | . . . . Hackware . | . . . . Protection 4 | . 3 1 . Artifact . | . . . . Weapon 19 | . 7 8 4 Energy Gun 7 | . 2 3 2 Energy Cannon . | . . . . Ballistic Gun 5 | . 2 1 2 Ballistic Cannon 3 | . 1 2 . Launcher 4 | . 2 2 . Special Weapon . | . . . . Impact Weapon . | . . . . Slashing Weapon . | . . . . Piercing Weapon . | . . . . Special Melee Weapon . | . . . . Unidentified Prototypes 1 | . . . 1 Parts Lost 14 | . 4 9 1 Power 1 | . 1 . . Propulsion 5 | . 2 2 1 Utility 2 | . . 2 . Weapon 6 | . 1 5 . Highest Loss Streak 7 | . 1 7 1 To Critical Strikes . | . . . . Average Slot Usage (%) 90 | . 96 84 87 Engine 13 | . 13 14 14 Treads 13 | . 18 8 10 Wheel 11 | . 6 15 15 Device 6 | . 3 6 14 Storage 14 | . 14 14 14 Protection 6 | . 10 5 . Energy Gun 6 | . 3 8 8 Ballistic Gun 11 | . 22 . 11 Ballistic Cannon 4 | . 1 9 . Peak Build Rating 24 | 7 8 14 24 Average Rating 9 | 6 7 9 17 On Entrance 8 | 6 7 8 14 Naked Turns . | . . . . Heaviest Build 93 | 14 33 92 93 Greatest Support 40 | 40 40 20 30 Greatest Overweight (x) 11 | . 3 11 9 Average Overweight (x) 2 | . 1 2 7 Largest Inventory Capacity 25 | 8 15 25 25 Average Capacity 16 | 8 14 15 25 Most Carried 21 | 7 12 15 21 Average Carried 10 | 5 7 12 13 Final Capacity 25 | 8 15 25 25 Final Carried 20 | 3 12 13 20 Class Distribution -------------------- 76% | Mutant 23% | Scavenger-Mutant Dominant Class ---------------- Mutant | -10/Materials Mutant | -10/Mines Mutant | -10/Subcaves Resources | -11 -10 -10 -10 ----------- Run | Yrd Mat Min Sub Matter Collected 1222 | 220 508 417 77 Remotely . | . . . . Salvage Created 1418 | 91 853 395 79 Parts 91 | 5 59 22 5 Haulers Intercepted 2 | . 2 . . Recyclers Shooed 1 | . 1 . . Parts Field Recycled . | . . . . Retrieved Matter . | . . . . Parts Self-Destructed . | . . . . Prevented . | . . . . Kills | -11 -10 -10 -10 ------- Run | Yrd Mat Min Sub Combat Hostiles Destroyed 38 | . 20 16 2 Guns 17 | . 14 1 2 Cannons 9 | . 1 8 . AOE 12 | . 5 7 . Classes Destroyed 11 | 2 7 1 1 Worker 1 | . 1 . . Builder 2 | . 2 . . Tunneler 2 | 1 . 1 . Hauler 2 | . 2 . . Recycler 4 | 1 1 2 . Operator 3 | . 3 . . Watcher 3 | . 3 . . Swarmer 12 | . 9 3 . Grunt 17 | . 11 6 . Subdweller 2 | . . . 2 Assembled 7 | . . 7 . Best Kill Streak 7 | 2 5 7 1 Combat Bots Only 7 | . 4 7 1 Max Kills in Single Turn 4 | 1 2 4 1 Gunslinging . | . . . . Exploded 4 | . 2 4 . Melee . | . . . . Uniques/NPCs Destroyed . | . . . . Combat | -11 -10 -10 -10 -------- Run | Yrd Mat Min Sub Hostile Shots Fired 145 | . 87 49 9 Missed 34 | . 21 12 1 Damage Taken 1768 | . 846 750 172 Core 270 | . 82 145 43 Absorbed by Shields . | . . . . Regen/Repaired (Parts) 75 | . 75 . . Core Remaining (%) 100 | 100 . . . Volleys Fired 146 | 8 91 39 8 Largest 2 | 2 2 2 2 Hottest 130 | 40 75 70 130 Shots Fired 286 | 16 182 75 13 Gun 206 | 16 169 8 13 Cannon 70 | . 8 62 . Launcher 10 | . 5 5 . Special . | . . . . Kinetic 245 | 16 157 66 6 Thermal 7 | . . . 7 Explosive 10 | . 5 5 . Electromagnetic 24 | . 20 4 . Robot Hit Streak 12 | 5 6 7 12 Robot Miss Streak 8 | 1 8 4 1 Penetration Max . | . . . . Secondary Targets 4 | . 4 . . Max Gunslinging Chain 1 | . 1 . . Shots Hit Robots 138 | 7 81 38 12 Core Hits 87 | 3 49 30 5 Critical Kills . | . . . . Critical Parts Destroyed . | . . . . Critical Strikes 1 | . . . 1 Burn 1 | . . . 1 Melee Attacks . | . . . . Impact . | . . . . Slashing . | . . . . Piercing . | . . . . Sneak Attacks . | . . . . Combat Hostiles . | . . . . Follow-up Attacks . | . . . . Damage Inflicted 2600 | 72 1353 1006 169 Guns 1195 | 72 915 39 169 Cannons 553 | . 32 521 . Explosions 807 | . 390 417 . Melee . | . . . . Ramming 45 | . 16 29 . Kinetic 1458 | 72 785 536 65 Thermal 154 | . 50 . 104 Explosive 757 | . 340 417 . Electromagnetic 186 | . 162 24 . Impact . | . . . . Slashing . | . . . . Piercing . | . . . . Highest Corruption . | . . . . Average Corruption . | . . . . Corruption Purged . | . . . . Corruption Blocked . | . . . . Overload Shots . | . . . . Overflow Damage 45 | . . 45 . Projectiles . | . . . . Explosions 45 | . . 45 . Melee . | . . . . Knockbacks 9 | . . 9 . Impact 1 | . . 1 . Kinetic 8 | . . 8 . Secondary . | . . . . Self-Inflicted Damage 137 | . 56 81 . Shots 6 | . 2 4 . Rammed 6 | . 3 3 . Targets Rammed 6 | . 3 3 . Kicked . | . . . . Crushed . | . . . . Highest Temperature 194 | . 194 144 18 Average Temperature 39 | . 33 47 7 Received Heat Transfer 395 | . 198 179 18 Siege Activations . | . . . . Robots Corrupted . | . . . . Combat Hostiles . | . . . . Parts Fried 1 | . 1 . . Impact Corruptions . | . . . . Robots Melted . | . . . . Combat Hostiles . | . . . . Parts Melted 1 | . 1 . . Heat Transferred 483 | . 150 . 333 Parts Sabotaged . | . . . . Parts Stolen . | . . . . Parts Stripped . | . . . . Power Chain Reactions 1 | . 1 . . Alert | -11 -10 -10 -10 ------- Run | Yrd Mat Min Sub Peak Influence 410 | 10 410 355 . Initial 85 | . 6 85 . Average 121 | 7 146 99 . Maximum Alert Level 2 | . 2 1 . Low Security (%) 70 | 100 57 83 . Level 1 29 | . 42 16 . Level 2 . | . . . . Level 3 . | . . . . Level 4 . | . . . . Level 5 . | . . . . High Security . | . . . . Max Security . | . . . . Squads Dispatched 6 | . 6 . . Investigation 3 | . 3 . . Extermination . | . . . . Reinforcement 3 | . 3 . . Assault . | . . . . Garrison . | . . . . Intercept . | . . . . Searches Triggered . | . . . . Construction Impeded . | . . . . Haulers Reinforced . | . . . . Active Scanning Responses . | . . . . Cargo Convoy Interrupts . | . . . . Stealth | -11 -10 -10 -10 --------- Run | Yrd Mat Min Sub Distress Signals 2 | . 2 . . Communications Jammed . | . . . . Distress Signals . | . . . . Times Spotted 75 | . 41 31 3 Peak Tracking Total 13 | . 6 13 2 Tactical Retreats 4 | . 2 2 . Traps | -11 -10 -10 -10 ------- Run | Yrd Mat Min Sub Traps Triggered 3 | . 3 . . Indirectly . | . . . . Trap Hack Attempts . | . . . . Triggered . | . . . . Disarmed . | . . . . Reprogrammed . | . . . . Reused . | . . . . Traps Extracted . | . . . . Installed . | . . . . Triggered . | . . . . Machines | -11 -10 -10 -10 ---------- Run | Yrd Mat Min Sub Machines Disabled 5 | . 1 4 . Max in Single Turn 1 | . 1 1 . Machines Repaired . | . . . . Machines Dismantled . | . . . . Machines Sabotaged . | . . . . Overloaded Fab Kills . | . . . . Hacking | -11 -10 -10 -10 --------- Run | Yrd Mat Min Sub Machines Accessed 6 | . 6 . . Terminals 4 | . 4 . . Fabricators . | . . . . Repair Stations 1 | . 1 . . Recycling Units 1 | . 1 . . Scanalyzers . | . . . . Garrison Access . | . . . . Total Hacks 17 | . 17 . . Successful 10 | . 10 . . Failed 7 | . 7 . . Catastrophic . | . . . . Database Lockouts . | . . . . Manual 13 | . 13 . . Terminals 12 | . 12 . . Fabricators . | . . . . Repair Stations 2 | . 2 . . Recycling Units 3 | . 3 . . Scanalyzers . | . . . . Garrison Access . | . . . . Terminal Hacks . | . . . . Fabricator Hacks . | . . . . Repair Station Hacks 2 | . 2 . . Scan Component 1 | . 1 . . Repair 1 | . 1 . . Recycling Unit Hacks 1 | . 1 . . Retrieve Components 1 | . 1 . . Scanalyzer . | . . . . Garrison Access Hacks . | . . . . Unauthorized Hacks 7 | . 7 . . Terminals 6 | . 6 . . Assimilate 2 | . 2 . . Botnet 3 | . 3 . . Operators 1 | . 1 . . Fabricators . | . . . . Repair Stations . | . . . . Recycling Units 1 | . 1 . . Tunnel 1 | . 1 . . Scanalyzers . | . . . . Garrison Access . | . . . . Data Cores Recovered . | . . . . Used . | . . . . Hacking Detections 4 | . 4 . . Full Trace Events 1 | . 1 . . Feedback Events . | . . . . Feedback Blocked . | . . . . Robot Schematics Acquired . | . . . . Robots Built . | . . . . Authchips . | . . . . Time . | . . . . Total Robot Build Rating . | . . . . Part Schematics Acquired . | . . . . Parts Built . | . . . . Authchips . | . . . . Time . | . . . . Total Part Build Rating . | . . . . Parts Repaired 1 | . 1 . . Time 26 | . 26 . . Parts Recycled . | . . . . Recycled Matter . | . . . . Retrieved Matter . | . . . . Retrieved Components 9 | . 9 . . Parts Scanalyzed . | . . . . Part Schematics Acquired . | . . . . Parts Damaged . | . . . . Bothacking | -11 -10 -10 -10 ------------ Run | Yrd Mat Min Sub Used RIF Installer . | . . . . Robots Hacked . | . . . . Non-combat . | . . . . Combat . | . . . . Robot Hacks Applied . | . . . . Relay Couplers Released . | . . . . Fabnet Peak Effective % . | . . . . Robots Rewired . | . . . . Allies Hacked . | . . . . Hacks Repelled . | . . . . Allies | -11 -10 -10 -10 -------- Run | Yrd Mat Min Sub Total Allies 3 | . 1 2 . Largest Group 2 | . 1 2 2 Highest-Rated Group 32 | . 10 32 32 Highest-Rated Ally 16 | . 10 16 16 Total Orders 2 | . 1 . 1 STAY 2 | . 1 . 1 Ally Attacks . | . . . . Total Damage . | . . . . Kills . | . . . . Allies Corrupted . | . . . . Allies Melted . | . . . . Intel | -11 -10 -10 -10 ------- Run | Yrd Mat Min Sub Robot Analysis Total . | . . . . Derelict Logs Recovered 3 | . . 3 . Drone Launches . | . . . . Drone Recoveries . | . . . . Exploration | -11 -10 -10 -10 ------------- Run | Yrd Mat Min Sub Turns Passed 3759 | 62 1664 1620 413 Spaces Moved 1887 | 25 919 802 141 Core 5 | . . 5 . Treads 500 | 10 414 76 . Legs 15 | 15 . . . Wheels 1367 | . 505 721 141 Hover . | . . . . Flight . | . . . . Fastest Speed 95 | 120 95 95 131 Average Speed 141 | 136 145 127 197 Slowest Speed 600 | 160 240 600 215 Overloaded Moves . | . . . . Propulsion Burnouts . | . . . . Robots Hopped . | . . . . Cave-ins Triggered . | . . . . Exploration Rate (%) 52 | 4 99 99 9 Regions Visited 3 Branch Regions 2 Pre-discovered Areas 1 | . 1 . . Known Exits Taken . | . . . . Unknown Exits Taken 3 | 1 1 1 . Scrap Searched 7 | . . 3 4 Spaces Dug 4 | . 4 . . Terrain Destroyed 48 | . 26 22 . Melee . | . . . . Projectile . | . . . . AOE 48 | . 26 22 . Terrain Rammed . | . . . . Walls Destroyed . | . . . . Machines Disabled . | . . . . Actions | -11 -10 -10 -10 --------- Run | Yrd Mat Min Sub Total 2693 | 40 1068 1321 264 Wait 575 | . 29 452 94 Move 1884 | 24 918 801 141 Hop . | . . . . Pick Up 32 | 1 12 9 10 Fast Attach 5 | 1 1 2 1 Attach 15 | 2 4 7 2 Detach 2 | . . . 2 Swap 18 | . 9 6 3 Drop 10 | 4 1 2 3 Fire 146 | 8 91 39 8 Melee . | . . . . Ram 6 | . 3 3 . Kick . | . . . . Crush . | . . . . Escape Stasis . | . . . . Rewire . | . . . . Trap . | . . . . Miscellaneous . | . . . . Route ------- -11/Scrapyard -10/Materials (discovered 6 exits: [*Mat x3] / [*Min x2] / [*Sub]) -10/Mines (discovered 3 exits: [*Mat x2] / [*Sub]) -10/Subcaves History --------- Turn | Location | Event 1 | -11/Scrapyard | Discovered new exit (range 1) 63 | -11/Scrapyard | Entered Materials 302 | -10/Materials | Build established: Mutant 591 | -10/Materials | Discovered new exit (range 6) 714 | -10/Materials | Discovered new exit (range 10) 879 | -10/Materials | Discovered new exit (range 15) 1243 | -10/Materials | Discovered new exit (range 3) 1368 | -10/Materials | Discovered new exit (range 6) 1469 | -10/Materials | Discovered new exit (range 14) 1533 | -10/Materials | Repaired Lgt. Armor Plating 1727 | -10/Materials | Entered Mines 1758 | -10/Mines | Learned Materials emergency access door positions 1911 | -10/Mines | Learned Materials security intel 1985 | -10/Mines | Core integrity fell below 50% 2083 | -10/Mines | Discovered new exit (range 8) 2096 | -10/Mines | Discovered new exit (range 5) 2307 | -10/Mines | Assembled infested the area 2312 | -10/Mines | Assisted by a Guerilla fighting off Assembled 2340 | -10/Mines | Core integrity fell below 20% 2345 | -10/Mines | Learned 2 Materials zone layouts 2352 | -10/Mines | Received a Rocket Launcher from a helpful Derelict 2363 | -10/Mines | Destroyed 7 combat bots 2399 | -10/Mines | Lost 7 parts (2u5w) 2807 | -10/Mines | Assisted by bots powering up and referring to "LRC-V3" 2848 | -10/Mines | Build established: Scavenger-Mutant 2894 | -10/Mines | Found a damaged Exp. Sensor Array with a note attached 2896 | -10/Mines | Found Prototype Device 3336 | -10/Mines | Discovered new exit (range 6) 3347 | -10/Mines | Entered Subcaves 3347 | -10/Subcaves | Accompanied by 2 allies 3397 | -10/Subcaves | Identified Exp. Sensor Array 3634 | -10/Subcaves | Disturbed a concealed Subdweller 3760 | -10/Subcaves | Destroyed by G1-CQ6(R) with Subdweller Laser Last Messages --------------- 03689_ Found Sub. Monowheel. 03689_ Found 64 Matter. 03690_ Acquired 10 matter. 03693_ Acquired Sub. Optics. 03696_ Acquired Sub. Monowheel. 03699_ Acquired Lgt. Assault Rifle. 03702_ Acquired Scrap Shield Fragment. 03703_ Searching scrap... 03703_ Found Sub. Laser. 03703_ Found 47 Matter. 03708_ Acquired Sub. Laser. 03711_ Searching scrap... 03711_ Found Sub. Monowheel. 03711_ Found 39 Matter. 03715_ Acquired Sub. Monowheel. 03720_ Acquired Scrap Shield Fragment. 03730_ Acquired Sub. Optics. 03733_ Acquired Disposable Heat Sink. 03735_ 01-JOM(R) destroyed. 03738_ Acquired 8 matter. Map ----- +----------------------------------------------------+ | ?????????????????????????????????????????????????? | | ?????????????????????????????????????????????????? | | ?????????????????????????????????????????????????? | | ?????????????????????????????????????????????????? | | ?????????????????????????????????????????????????? | | ?????????????????????????????????????????????????? | | ?????????????????????????????????????????????????? | | ?????????????????????????????????????????????????? | | ?????????????????????????????????????????????????? | | ?????????????????????????????????????????????????? | | ?????????????????????????????????????????????????? | | ????????????????????? ???????????????????????????? | | ?????????????????? ??????????????????????????? | | ?????????????????? ??????????????????????????? | | ??????????????????? ??????????????????????????? | | ??????????????????? ??????????????????????????? | | ???????????????????? ??????????????????????????? | | ???????????????????? ##????????????????????????? | | ????????????????????? ##???????????????????????? | | ?????????????????????# ???????????????????????? | | ?????????????????????? #?##????????????????????? | | ?????????????????????## ## ?????????????????????? | | ?????????????????????# ??????????????????????? | | ?????????????????????# #??????????????????????? | | ???????????????????### #??????????????????????? | | ????????????#####?## @#??????????????????????? | | ???????????##%#%### ##?????????????????????? | | ???????????#% %### #?????????????????????? | | ???????????### "##?# ##?????????????????????? | | ????????????# ##### ##??????????????????????? | | ???????????### # ## ### #???????????????????????? | | ?????????### " " # #####???????????????????????? | | ????????## R #???????????????????????? | | ????????# #### ##???????????????????????? | | ????????## ##?# #????????????????????????? | | #????????# ### #????????????????????????? | | # ##?????# ## #????????????????????????? | | # ???## ##????????????????????????? | | ? #### ##?????????????????????????? | | #" """"" #??????????????????????????? | | #?##""""""" ##??????????????????????????? | | #???#"" ###???????????????????????????? | | ????## ###?????????????????????????????? | | #????##" #???????????????????????????????? | | #??#### " #???????????????????????????????? | | #### # " " #???????????????????????????????? | | " " """!%& ????????????????????????????? | | " %""" & #??????????????????????????? | | " ## #"" #??????????????????????????? | | ###### # ## #??????????????????????????? | +----------------------------------------------------+ Best States ------------- Heat Dissipation 39 Energy Generation 10 Energy Capacity 250 Matter Stores 300 Matter Capacity 300 Sight Range 16 Robot Scan Range 20 Terrain Scan Density 10 Armor Coverage 150 Evasion (%) 55 Recoil Reduction 2 Item Schematics ----------------- None Robot Schematics ------------------ None Fabricated ------------ Nothing Alien Tech Used ----------------- None Achievements -------------- None Challenges ------------ None Game ------ Seed AccelerationWeldingSpear Manual? 0 Play Time 00:20:31 Cumulative 118.1 hours Start 2024.11.19 @ 13:12:38 End 2024.11.19 @ 13:31:42 Sessions 1 Manual Loads 0 Difficulty Rogue Special Mode None Game No. 220 Rogue 220 Adventurer 0 Explorer 0 Win Type - Total 0 Types 0/0/0/0/0/0/0/0/0 Lore% 42 Gallery% 40 Achievement% 35 Wizard Run 0 Options --------- Layout 0 ASCII 0 Keyboard 0 Movement Mouse Keybinds 0 Fullscreen 1 Font 24/Smallcaps Map View 91x25 Zoom Use 86% Tactical HUD 1 Map Filters NONE Filters NONE Steam 1 RUN: e20c0742-5cd6-495a-9262-700f5a04031f